bitfinex-derivatives/quotes_ETHF0:USTF0_20250626
["timestamp","ask_amount","ask_price","bid_price","bid_amount"]
[1750907568940,0.7979,2505.2,2504.7,0.79805]
[1750907569241,0.7979,2505.2,2504.8,1.3099]
[1750907569242,0.79792,2505.2,2504.8,1.3099]
[1750907569444,0.79793,2505.1,2504.8,1.3099]
[1750907569645,3.2078,2505.5,2504.8,1.3099]
[1750907570040,0.7979,2505.2,2504.8,1.3099]
[1750907570240,0.79793,2505.1,2504.8,1.3099]
[1750907570536,3.2078,2505.5,2504.8,1.3099]
[1750907570733,3.2078,2505.5,2504.8,2.10791]
[1750907570734,0.79788,2505.3,2504.8,2.10791]
[1750907571149,0.7979,2505.2,2504.8,1.3099]
[1750907571343,3.2078,2505.5,2504.8,2.1079]
[1750907571845,0.79787,2505.3,2504.8,2.1079]
[1750907572046,3.2078,2505.5,2504.8,1.3099]
[1750907572242,3.2078,2505.2,2504.5,3.47280835]
[1750907572450,3.2078,2504.6,2503.7,3.07794049]
[1750907572747,3.2078,2504.6,2503.4,3.84946213]
[1750907572748,3.2078,2504.0,2503.5,1.2312]
[1750907572949,0.79833,2503.9,2503.5,1.2312]
[1750907573446,0.79838,2503.7,2503.4,2.7108]
[1750907573648,0.79842,2503.6,2503.4,2.7108]
[1750907574148,0.79844,2503.5,2503.4,1.3176]
[1750907574340,0.79841,2503.6,2503.0,12.88699]
[1750907574540,3.2078,2504.0,2503.0,7.3313337]
[1750907574736,4.00609,2504.0,2503.1,9.467]
[1750907574937,0.79836,2503.8,2503.2,2.12603]
[1750907575148,4.00619,2503.7,2503.2,1.3275]
[1750907575337,4.00619,2503.7,2503.2,2.12603]
[1750907575542,3.2078,2503.7,2503.2,2.12603]
[1750907575743,3.2078,2503.7,2503.3,1.3275]
[1750907575944,3.2078,2503.7,2503.3,2.126]
[1750907576848,3.2078,2503.7,2503.4,0.79847]
[1750907577043,3.2078,2503.7,2503.4,1.3275]
[1750907577955,3.2078,2503.7,2503.4,2.12595]
[1750907578350,3.2078,2504.0,2503.4,1.3275]
[1750907578658,3.2078,2504.0,2503.8,0.79834]
[1750907578848,0.79822,2504.2,2503.7,0.79836]
[1750907579050,4.00599,2504.3,2503.4,4.5353]
[1750907579351,4.0061,2504.0,2503.4,4.5353]
[1750907579553,3.2078,2503.7,2503.4,2.12596]
[1750907580258,3.2078,2503.7,2503.5,0.79844]
[1750907580452,3.2078,2503.7,2503.4,0.79846]
[1750907580652,4.00598,2504.3,2503.4,3.2078]
[1750907580860,4.00599,2504.3,2503.5,1.387]
[1750907581154,3.2078,2504.3,2503.7,3.2078]
[1750907581362,4.006,2504.3,2503.8,2.6916]
[1750907581545,4.006,2504.3,2503.8,1.3046]
[1750907581546,0.79826,2504.1,2503.8,1.3046]
[1750907581751,3.2078,2503.9,2503.7,0.79836]
[1750907581950,3.2078,2503.9,2503.6,1.2321]
[1750907582251,3.2078,2503.9,2503.6,2.0305]
[1750907582453,11.8139,2504.5,2503.6,2.0305]
[1750907582454,2.5329,2504.5,2504.1,0.79825]
[1750907582663,3.2078,2504.3,2504.1,0.79823]
[1750907583050,3.2078,2504.3,2503.9,0.79828]
[1750907583448,3.2078,2504.3,2504.2,0.79822]
[1750907583851,3.2078,2504.3,2504.1,0.79823]
[1750907584149,10.6478,2504.8,2504.3,0.79818]
[1750907584150,3.2078,2504.7,2504.3,0.79818]
[1750907584751,3.2078,2504.7,2503.7,3.2078]
[1750907585061,3.2078,2504.7,2502.4,3.42867]
[1750907585062,0.79862,2503.0,2502.4,3.42867]
[1750907585257,3.2078,2502.9,2502.4,2.6299]
[1750907585460,3.2078,2502.6,2502.4,3.42868]
[1750907585962,3.2078,2502.6,2502.4,3.42867]
[1750907586258,3.2078,2502.6,2502.4,2.6299]
[1750907586459,3.2078,2502.6,2502.4,3.42868]
[1750907587258,13.82010491,2502.6,2502.0,0.29596852]
[1750907587459,4.00667,2502.2,2502.0,0.29596852]
[1750907587854,3.2078,2502.2,2502.0,0.29596852]
[1750907588758,3.2078,2502.3,2502.1,1.3064]
[1750907588959,0.79878,2502.5,2502.0,0.29596852]
[1750907589159,4.00664,2502.3,2502.0,0.29596852]
[1750907589467,3.2078,2502.3,2502.0,0.29596852]
[1750907589961,1.3807,2502.2,2502.0,0.29596852]
[1750907590359,4.00662,2502.3,2502.0,0.29596852]
[1750907590554,0.79886,2502.2,2502.0,0.29596852]
[1750907590754,4.00664,2502.3,2502.0,0.29596852]
[1750907591657,3.2078,2502.3,2502.0,0.29596852]
[1750907591961,3.2078,2502.3,2502.1,1.315]
[1750907592163,3.2078,2502.3,2502.0,0.29596852]
[1750907594958,3.2078,2502.3,2502.0,1.09487852]
[1750907595158,3.2078,2502.3,2502.1,0.79887]
[1750907595360,3.2078,2502.3,2502.1,1.4318]
[1750907595965,3.2078,2502.3,2502.1,2.23069]
[1750907597854,3.2078,2502.6,2502.5,0.79874]
[1750907598057,3.2078,2502.6,2502.4,0.79879]
[1750907598463,3.2078,2502.6,2502.3,0.79881]
[1750907598658,3.2078,2502.6,2502.3,2.17011]
[1750907599372,3.2078,2502.6,2502.5,0.79876]
[1750907599564,3.2078,2502.6,2502.4,0.79876]
[1750907599759,3.2078,2502.6,2502.5,0.79876]
[1750907599962,3.2078,2502.6,2502.0,1.09485852]
[1750907600258,4.00654,2502.6,2502.1,0.79887]
[1750907600460,4.00654,2502.6,2502.2,0.79885]
[1750907601167,4.00653,2502.6,2502.2,0.79882]
[1750907601367,3.2078,2502.6,2502.2,0.79882]
[1750907601670,3.2078,2502.6,2502.1,0.79886]
[1750907601869,3.2078,2502.6,2502.1,1.3809]
[1750907602070,3.2078,2502.6,2502.2,0.79885]
[1750907602367,4.00653,2502.6,2502.2,0.79885]
[1750907602567,3.2078,2502.6,2502.3,0.79882]
[1750907602770,4.00653,2502.6,2502.2,0.79884]
[1750907603271,0.79876,2502.5,2502.1,2.17977]
[1750907603462,4.00654,2502.6,2502.2,0.79885]
[1750907603763,3.2078,2502.6,2502.3,0.79882]
[1750907604362,3.2078,2502.6,2502.3,0.7988]
[1750907604564,4.00654,2502.6,2502.2,0.79884]
[1750907605566,3.2078,2502.6,2502.3,0.79882]
[1750907605974,0.79877,2502.5,2502.1,0.79886]
[1750907606163,3.2078,2502.6,2502.1,2.10437]
[1750907606377,3.2078,2502.6,2502.2,0.79885]
[1750907606568,4.00654,2502.6,2502.2,0.79885]
[1750907606772,4.00654,2502.6,2502.2,0.79884]
[1750907606968,3.2078,2502.6,2502.3,0.79881]
[1750907607371,3.2078,2502.6,2502.5,0.79876]
[1750907607569,0.7986,2503.0,2502.2,9.289]
[1750907607870,3.2078,2503.1,2502.8,0.79864]
[1750907608069,0.7986,2503.0,2502.7,0.79868]
[1750907608270,0.7986,2503.0,2502.6,0.79871]
[1750907608471,5.31178,2503.1,2502.3,1.3055]
[1750907608672,4.5132,2503.1,2502.3,3.30255]
[1750907608970,4.00638,2503.1,2502.8,0.79865]
[1750907609166,4.00638,2503.1,2502.3,1.3055]
[1750907609167,3.2078,2503.1,2502.9,0.79861]
[1750907609377,3.2078,2503.1,2502.8,0.79864]
[1750907609575,3.2078,2503.1,2502.9,0.79863]
[1750907610076,3.2078,2503.1,2502.5,3.8818]
[1750907610077,4.5091,2503.4,2503.1,0.79857]
[1750907610270,3.2078,2503.4,2503.2,0.79853]
[1750907610871,3.2078,2503.4,2503.3,0.7985]
[1750907611269,3.2078,2503.4,2502.7,5.20451]
[1750907611572,3.2078,2502.8,2501.5,3.2078]
[1750907611773,4.00669,2502.1,2501.5,3.2078]
[1750907612076,4.96073096,2502.1,2501.5,3.2078]
[1750907612269,4.96073096,2502.1,2501.7,9.143]
[1750907614270,14.78171353,2502.1,2500.6,3.2078]
[1750907614476,3.2078,2501.5,2500.6,12.3518]
[1750907614669,0.95404096,2501.4,2500.9,0.79924]
[1750907614974,1.75316096,2501.4,2501.0,1.4268]
[1750907615163,3.2078,2501.2,2500.6,3.48530185]
[1750907615369,3.2078,2501.2,2500.7,1.4268]
[1750907615570,3.2078,2501.2,2500.7,2.22612]
[1750907615869,3.2078,2501.2,2500.8,9.144]
[1750907616171,0.956371,2501.1,2500.6,3.48530185]
[1750907616371,0.79922,2501.1,2500.7,9.145]
[1750907616673,4.41121775,2501.2,2500.6,4.28466185]
[1750907616974,0.79921,2501.1,2500.7,10.5718]
[1750907617173,4.41121775,2501.2,2500.7,10.5718]
[1750907617368,4.41121775,2501.2,2500.7,11.37113]
[1750907617676,3.61202775,2501.2,2500.7,11.37113]
[1750907617975,3.61202775,2501.2,2500.7,1.4268]
[1750907618178,5.82241775,2501.2,2500.7,1.4268]
[1750907618376,3.61202775,2501.2,2500.7,1.4268]
[1750907618578,3.61202775,2501.2,2500.8,0.79929]
[1750907618774,3.2078,2501.7,2501.1,3.2078]
[1750907618973,3.2078,2501.4,2501.2,11.7173]
[1750907619278,3.2078,2501.4,2501.2,2.5723]
[1750907619483,3.2078,2501.4,2501.2,1.2636]
[1750907619875,3.2078,2501.4,2501.2,2.06276]
[1750907620079,3.2078,2501.4,2501.2,1.2636]
[1750907620375,3.2078,2501.4,2501.2,2.06276]
[1750907621078,3.2078,2501.4,2501.3,0.79914]
[1750907621279,3.2078,2501.7,2501.4,0.79909]
[1750907621465,3.2078,2501.7,2501.3,0.79912]
[1750907621670,3.2078,2501.7,2501.2,2.6488]
[1750907621876,3.2078,2501.7,2501.3,1.3852]
[1750907622280,3.2078,2501.7,2501.3,2.18433]
[1750907622572,3.2078,2501.7,2501.3,1.3852]
[1750907623480,3.2078,2501.7,2501.3,2.18432]
[1750907624073,3.2078,2501.7,2500.6,1.99838]
[1750907624074,3.2078,2501.4,2500.3,3.2078]
[1750907624278,4.0611,2501.9,2500.0,5.61987257]
[1750907624279,3.2078,2500.9,2500.6,1.3819]
[1750907625081,3.2078,2500.9,2500.5,1.2668]
[1750907625272,3.2078,2500.6,2500.1,10.3963]
[1750907625582,3.2078,2500.6,2500.2,2.18138]
[1750907625783,3.2078,2500.3,2500.2,1.3819]
[1750907626476,3.2078,2500.3,2498.9,49.2638]
[1750907626676,5.61987257,2500.6,2499.7,0.79963]
[1750907626874,3.2078,2499.8,2499.6,2.06247]
[1750907627077,3.2078,2499.8,2499.6,1.2628]
[1750907627270,3.2078,2499.8,2499.7,1.3915]
[1750907628080,3.2078,2499.8,2499.6,2.06248]
[1750907628278,3.2078,2499.8,2499.5,9.9467]
[1750907628583,3.2078,2499.8,2499.7,0.79965]
[1750907630482,3.2078,2500.4,2500.3,0.79944]
[1750907630787,3.2078,2500.7,2500.0,9.148]
[1750907630976,3.2078,2500.6,2500.5,0.79937]
[1750907631387,3.2078,2500.6,2500.5,9.94837]
[1750907632180,3.2078,2501.0,2500.9,0.79926]
[1750907633688,3.2078,2501.3,2501.2,0.79917]
[1750907635083,3.2078,2501.6,2501.0,9.149]
[1750907635288,3.2078,2501.6,2501.5,0.79908]
[1750907635491,3.2078,2501.8,2501.3,3.2078]
[1750907635684,5.61987257,2501.8,2501.4,1.3343]
[1750907635883,3.2078,2501.5,2501.2,0.79917]
[1750907636086,3.2078,2501.5,2501.4,0.79911]
[1750907636284,3.2078,2501.5,2501.0,2.6203]
[1750907636593,4.00689,2501.5,2501.0,3.41951]
[1750907637186,3.2078,2501.5,2501.1,0.79918]
[1750907637489,4.0069,2501.5,2501.0,3.41952]
[1750907637891,4.0069,2501.5,2501.0,12.56852]
[1750907638088,3.2078,2501.5,2501.1,0.7992]
[1750907638483,4.00688,2501.5,2501.1,0.7992]
[1750907638684,3.2078,2501.5,2501.1,0.7992]
[1750907639188,3.2078,2501.5,2501.2,0.79917]
[1750907640392,3.2078,2501.5,2501.2,0.79916]
[1750907640587,3.2078,2501.5,2501.1,0.79919]
[1750907640786,3.2078,2501.5,2501.2,0.79916]
[1750907640991,3.2078,2501.5,2501.2,0.79917]
[1750907641692,3.2078,2501.5,2501.1,0.79919]
[1750907641895,3.2078,2501.5,2501.2,0.79917]
[1750907642592,3.2078,2501.5,2501.2,0.79916]
[1750907642787,3.2078,2501.5,2501.3,0.79914]
[1750907642991,3.2078,2501.5,2501.4,0.79911]
[1750907643492,3.2078,2501.5,2501.3,0.79912]
[1750907644395,3.2078,2501.5,2501.4,0.79911]
[1750907645395,3.2078,2501.5,2501.3,0.79912]
[1750907645588,3.2078,2501.5,2501.0,11.6393]
[1750907645792,3.2078,2501.3,2501.2,0.79917]
[1750907646401,3.2078,2501.3,2501.1,0.7992]
[1750907646897,3.2078,2501.3,2501.0,2.6203]
[1750907647097,0.79919,2501.2,2500.8,9.81828]
[1750907647300,4.00695,2501.3,2500.9,0.79925]
[1750907647497,3.2078,2501.0,2500.8,9.81829]
[1750907647698,3.2078,2501.0,2500.8,9.8183]
[1750907647996,3.2078,2501.0,2500.9,0.79927]
[1750907648593,5.15604487,2501.7,2500.9,0.79927]
[1750907648594,3.2078,2501.7,2501.0,1.9981]
[1750907648800,3.61506586,2502.0,2501.6,0.79903]
[1750907649103,3.2078,2502.0,2501.7,0.79901]
[1750907649599,3.2078,2502.3,2502.2,0.79885]
[1750907649802,3.2078,2502.3,2502.0,9.019]
[1750907650004,3.2078,2502.3,2502.1,1.3741]
[1750907650204,3.2078,2502.3,2502.2,0.79885]
[1750907650401,3.2078,2502.3,2502.1,2.17297]
[1750907650596,3.2078,2502.3,2502.2,0.79885]
[1750907652099,3.2078,2502.7,2502.4,0.79876]
[1750907652403,3.2078,2502.7,2502.5,0.79876]
[1750907653602,3.2078,2502.7,2502.6,0.79873]
[1750907653805,3.2078,2502.7,2502.5,0.79874]
[1750907654309,3.2078,2502.7,2502.6,1.2964]
[1750907654822,3.2078,2503.0,2502.6,1.2964]
[1750907655006,3.2078,2503.0,2502.8,0.79866]
[1750907655406,3.2078,2503.3,2503.0,0.79859]
[1750907655595,3.2078,2503.3,2502.8,1.2964]
[1750907655797,3.2078,2503.3,2502.9,0.79861]
[1750907655997,3.2078,2503.3,2503.0,1.2964]
[1750907656705,3.2078,2503.3,2503.0,2.09499]
[1750907656908,4.00618,2503.7,2503.2,0.79852]
[1750907657211,3.2078,2503.7,2503.3,0.79848]
[1750907657410,3.2078,2503.7,2503.4,0.79846]
[1750907658304,3.2078,2503.7,2503.6,0.79841]
[1750907658708,3.2078,2503.7,2503.4,0.79845]
[1750907658918,3.2078,2503.7,2503.4,9.015]
[1750907659220,3.2078,2503.7,2503.3,9.81349]
[1750907659519,3.2078,2503.7,2503.4,1.3138]
[1750907659915,3.2078,2503.7,2503.4,2.11225]
[1750907660309,3.2078,2503.7,2503.5,0.79842]
[1750907660514,3.2078,2503.7,2503.6,1.348]
[1750907661021,3.2078,2503.7,2503.6,2.14641]
[1750907661219,3.2078,2503.7,2503.6,1.348]
[1750907661423,8.2078,2503.7,2502.4,3.2078]
[1750907661721,3.2078,2502.8,2502.6,0.79871]
[1750907661918,0.79852,2503.3,2502.7,1.348]
[1750907662117,4.00629,2503.4,2502.7,1.348]
[1750907662520,1.1938,2503.6,2502.7,1.348]
[1750907662521,3.2078,2503.1,2502.7,1.348]
[1750907662721,0.79851,2503.3,2502.9,0.79861]
[1750907662923,3.2078,2503.1,2503.0,1.4246]
[1750907663123,4.00629,2503.4,2503.0,2.2232]
[1750907663628,0.7985,2503.3,2503.0,1.4246]
[1750907663826,3.2078,2503.1,2503.0,1.4246]
[1750907664029,4.00639,2503.1,2502.7,9.81168]
[1750907664327,3.2078,2502.8,2502.7,9.81168]
[1750907664625,3.2078,2502.8,2502.6,0.79871]
[1750907664828,4.00648,2502.8,2502.5,11.6063]
[1750907665419,0.79871,2502.7,2502.5,1.2353]
[1750907665619,4.00648,2502.8,2502.5,1.2353]
[1750907666228,3.2078,2502.8,2502.5,1.2353]
[1750907667331,3.2078,2502.8,2502.5,2.03405]
[1750907667631,4.00646,2502.8,2502.5,1.2353]
[1750907668425,3.2078,2502.8,2502.5,1.2353]
[1750907668922,3.2078,2503.0,2502.5,1.2353]
[1750907669126,4.00641,2503.0,2502.6,9.81171]
[1750907669329,3.2078,2503.0,2502.6,0.79873]
[1750907669827,4.0064,2503.0,2502.6,0.79873]
[1750907670224,4.0064,2503.0,2502.5,10.2483]
[1750907670225,3.2078,2503.0,2502.5,10.2483]
[1750907670425,3.2078,2503.0,2502.6,0.7987]
[1750907670625,3.2078,2503.0,2502.0,1.2745]
[1750907670831,3.2078,2502.2,2502.0,1.2745]
[1750907671128,4.00666,2502.2,2502.0,1.2745]
[1750907671521,3.2078,2502.5,2502.0,1.2745]
[1750907672031,0.79879,2502.4,2502.0,2.0734]
[1750907672226,4.00657,2502.5,2502.1,0.79888]
[1750907672622,3.2078,2502.5,2502.0,1.2745]
[1750907672825,3.2078,2502.8,2502.1,8.878]
[1750907673127,3.2078,2502.8,2502.6,0.7987]
[1750907673831,3.2078,2502.8,2501.8,12.0868]
[1750907674129,3.2078,2502.2,2501.8,12.88576]
[1750907674330,4.00667,2502.2,2501.8,12.88576]
[1750907675433,3.2078,2502.2,2501.8,12.0868]
[1750907675624,4.00666,2502.2,2501.8,12.88577]
[1750907675930,3.2078,2502.2,2501.9,0.79894]
[1750907676328,4.00666,2502.2,2501.8,4.00676]
[1750907677025,4.00666,2502.2,2501.4,1.3253]
[1750907677026,3.2078,2501.9,2500.4,2.31073116]
[1750907677227,3.2078,2501.2,2500.9,2.06065]
[1750907678234,3.2078,2501.2,2500.9,2.06067]
[1750907678832,3.2078,2501.5,2500.9,4.4692]
[1750907679032,3.2078,2501.5,2501.4,0.79911]
[1750907679329,3.2078,2501.5,2501.2,8.881]
[1750907679536,4.00688,2501.5,2501.2,8.881]
[1750907681833,4.00688,2501.5,2501.2,10.2254]
[1750907682036,3.2078,2501.5,2501.2,10.2254]
[1750907682331,3.2078,2501.5,2501.2,8.881]
[1750907682332,0.79914,2501.3,2501.2,8.881]
[1750907682534,0.79914,2501.3,2501.0,1.3086]
[1750907682729,3.2078,2501.1,2501.0,1.3086]
[1750907683131,4.007,2501.1,2501.0,1.3086]
[1750907683435,0.79929,2500.9,2500.5,10.91939]
[1750907683824,0.79929,2500.9,2500.6,1.3444]
[1750907684032,0.79931,2500.8,2500.6,1.3444]
[1750907684232,3.2078,2501.1,2500.6,1.3444]
[1750907684622,3.2078,2501.1,2500.8,0.7993]
[1750907684827,3.2078,2501.4,2500.9,1.3108]
[1750907685222,0.79919,2501.2,2500.9,1.3108]
[1750907685626,4.00692,2501.4,2500.9,2.11007]
[1750907685821,3.61217074,2501.4,2500.9,1.3108]
[1750907686027,0.79916,2501.3,2500.9,1.3108]
[1750907686232,4.41129074,2501.4,2500.9,2.11007]
[1750907686434,4.41129074,2501.4,2501.0,0.79923]
[1750907686630,3.2078,2501.4,2501.1,1.3108]
[1750907687137,0.79916,2501.3,2501.1,1.3108]
[1750907687537,0.79917,2501.2,2500.8,9.68128]
[1750907687834,3.2078,2501.1,2500.9,0.79927]
[1750907688034,3.2078,2501.1,2500.9,2.11297]
[1750907688230,3.2078,2501.1,2501.0,0.79924]
[1750907688433,3.2078,2501.4,2501.1,0.7992]
[1750907688635,4.00692,2501.4,2501.2,1.3137]
[1750907688830,3.2078,2501.4,2501.2,1.3137]
[1750907690134,4.00691,2501.4,2501.2,1.3137]
[1750907690336,0.79914,2501.3,2501.2,1.3137]
[1750907690634,4.00693,2501.4,2501.2,1.3137]
[1750907691437,3.2078,2501.4,2501.2,1.3137]
[1750907691631,3.2078,2501.4,2501.2,2.11286]
[1750907692037,3.2078,2501.4,2501.3,1.402]
[1750907693133,3.2078,2501.4,2501.3,2.20114]
[1750907694438,3.2078,2501.4,2501.3,1.402]
[1750907694942,3.2078,2501.4,2501.3,2.6407]
[1750907695240,3.2068,2501.4,2501.3,2.6407]
[1750907696938,0.79905,2501.6,2501.3,2.6407]
[1750907697242,0.79905,2501.6,2501.3,3.43984]
[1750907697739,0.79903,2501.7,2501.4,0.7991]
[1750907697935,0.799,2501.8,2501.5,1.3551]
[1750907698135,0.799,2501.8,2501.5,2.15416]
[1750907698541,0.79899,2501.8,2501.5,2.15416]
[1750907698742,0.79898,2501.8,2501.5,2.15418]
[1750907699241,4.00677,2501.9,2501.6,0.79904]
[1750907699442,0.79898,2501.8,2501.7,1.384]
[1750907700438,3.2078,2502.2,2501.7,4.5918]
[1750907700637,0.79894,2502.0,2501.7,4.5918]
[1750907700943,0.79887,2502.2,2501.9,0.79895]
[1750907701143,0.79887,2502.2,2502.0,2.7102]
[1750907701442,0.79882,2502.4,2502.0,3.5091]
[1750907701645,0.79882,2502.3,2502.0,2.7102]
[1750907701835,0.79881,2502.4,2502.0,3.50912]
[1750907702032,0.79881,2502.4,2502.0,4.79552]
[1750907702444,0.7988,2502.4,2502.0,4.7955]
[1750907702838,0.7978,2502.4,2502.0,4.7955]
[1750907703037,0.79877,2502.5,2502.1,0.79888]
[1750907703243,3.2078,2502.8,2502.5,0.79875]
[1750907703541,3.2058,2502.8,2502.6,1.2968]
[1750907703842,3.2058,2502.8,2502.7,1.3501]
[1750907704147,3.2048,2502.8,2502.7,1.3501]
[1750907704442,3.2078,2503.4,2502.7,1.3501]
[1750907704640,3.2068,2503.4,2502.8,1.2968]
[1750907704839,0.79857,2503.1,2502.8,1.2968]
[1750907705145,3.2068,2503.4,2502.8,1.2968]
[1750907705535,0.79855,2503.2,2502.8,2.09546]
[1750907705738,0.79755,2503.2,2502.8,2.09546]
[1750907705938,3.2078,2503.7,2502.9,11.9518]
[1750907706132,4.493,2504.1,2503.0,1.3819]
[1750907706334,4.90030073,2504.1,2503.2,3.2078]
[1750907706534,0.79733,2503.9,2503.4,0.79847]
[1750907706741,0.79733,2503.9,2503.6,3.2078]
[1750907706942,0.79633,2503.9,2503.7,1.3819]
[1750907707242,3.61510073,2504.1,2503.7,1.3819]
[1750907707435,0.79822,2504.2,2503.7,2.18026]
[1750907707635,4.00597,2504.4,2503.8,1.3819]
[1750907707943,4.00597,2504.4,2504.0,3.2078]
[1750907708141,3.60315654,2504.7,2504.2,0.7982]
[1750907708339,0.79795,2505.1,2504.3,11.13773599]
[1750907708541,5.15563599,2505.1,2504.3,5.9821]
[1750907708843,0.79807,2504.7,2504.3,2.7743]
[1750907709236,3.2078,2504.9,2504.3,2.7743]
[1750907709237,0.79802,2504.8,2504.3,2.7743]
[1750907709438,3.2078,2505.2,2504.3,5.9821]
[1750907709645,0.79801,2504.9,2504.3,6.78027]
[1750907710042,0.798,2504.9,2504.3,6.78027]
[1750907710242,0.79803,2504.8,2504.3,5.9821]
[1750907710638,4.80137004,2505.2,2504.4,0.79813]
[1750907710846,0.79806,2504.7,2504.5,1.3124]
[1750907711038,0.79805,2504.8,2504.5,10.0524]
[1750907711435,4.80137004,2505.2,2504.3,1.3924]
[1750907711436,3.2078,2504.6,2504.3,1.3924]
[1750907711649,0.79815,2504.4,2504.3,1.3924]
[1750907712044,3.2078,2504.7,2504.3,1.3924]
[1750907712345,0.79805,2504.8,2504.4,1.342]
[1750907712551,0.79804,2504.8,2504.4,1.342]
[1750907712950,0.798,2504.9,2504.4,1.342]
[1750907713244,3.2078,2505.0,2504.5,1.3417]
[1750907713450,0.39927004,2505.2,2504.6,14.08586]
[1750907713451,0.79791,2505.2,2504.6,14.08586]
[1750907713651,4.00568,2505.3,2504.6,14.08586]
[1750907713942,3.2078,2505.3,2504.6,4.5498]
[1750907714450,0.79798,2505.0,2504.7,8.738]
[1750907714645,0.79795,2505.1,2504.8,1.3222]
[1750907714946,0.79794,2505.1,2504.8,1.3222]
[1750907715342,0.79794,2505.1,2504.5,0.79811]
[1750907715547,0.79794,2505.1,2499.8,18.3361172]
[1750907715548,3.2078,2503.4,2501.7,3.2078]
[1750907715744,3.2078,2502.3,2501.8,0.07994244]
[1750907715944,3.2078,2502.0,2501.8,0.07994244]
[1750907716144,3.2078,2502.4,2501.8,4.78584657]
[1750907716341,3.2078,2502.7,2502.3,1.9962]
[1750907716541,3.2078,2502.7,2502.3,8.737]
[1750907716748,4.00649,2502.7,2502.6,1.9962]
[1750907717054,0.79878,2502.5,2502.4,1.9962]
[1750907718145,0.79874,2502.6,2502.4,1.9962]
[1750907718347,4.0065,2502.7,2502.5,1.9962]
[1750907718650,3.2078,2502.7,2502.5,2.07612007]
[1750907718849,3.2078,2502.7,2502.5,0.07992007]
[1750907719653,0.79873,2502.6,2502.5,0.07992007]
[1750907719855,3.2078,2502.7,2502.5,1.5780242]
[1750907720151,3.2078,2503.0,2502.6,1.9962]
[1750907720347,3.2078,2503.0,2502.6,8.738]
[1750907720552,3.2078,2503.0,2502.9,1.9962]
[1750907720746,3.2078,2503.0,2502.8,1.9962]
[1750907721054,3.2078,2503.0,2502.5,0.07992007]
[1750907721348,3.2078,2502.6,2502.5,0.07992007]
[1750907721552,4.00653,2502.6,2502.5,0.07992007]
[1750907721750,3.2078,2502.6,2502.5,0.07992007]
[1750907722056,4.00653,2502.6,2502.5,0.07992007]
[1750907722355,3.2078,2502.6,2502.5,0.07992007]
[1750907722852,3.2078,2502.6,2502.5,2.07612007]
[1750907723854,3.2078,2502.6,2502.5,0.07992007]
[1750907724055,3.2078,2502.6,2502.1,10.87588]
[1750907724257,3.2078,2502.6,2502.5,1.9962]
[1750907724758,3.2078,2502.6,2502.3,0.7988]
[1750907724959,3.2078,2502.6,2502.5,1.9962]
[1750907725459,3.2078,2502.6,2502.3,2.1627]
[1750907725656,3.2078,2502.6,2502.5,1.9962]
[1750907725856,3.2078,2502.6,2502.5,2.79496]
[1750907726355,3.2078,2502.6,2502.5,4.29306413]
[1750907728257,3.2078,2502.9,2502.8,0.79864]
[1750907728752,3.2078,2502.9,2502.8,2.79484]
[1750907728953,3.2078,2503.2,2503.1,0.79856]
[1750907729457,3.2078,2503.2,2503.1,4.29286413]
[1750907729659,3.2078,2503.5,2503.1,3.49430413]
[1750907729953,3.2078,2503.5,2503.4,1.9962]
[1750907730164,3.2078,2503.5,2503.4,4.29277413]
[1750907730860,4.00615,2503.8,2503.4,4.29277413]
[1750907731062,3.2078,2503.8,2503.6,1.9962]
[1750907731263,3.2078,2503.8,2503.7,1.9962]
[1750907732249,3.2078,2503.8,2503.7,3.49430413]
[1750907732555,3.2078,2503.8,2503.7,4.29267413]
[1750907732864,0.79855,2503.2,2502.7,0.79868]
[1750907733060,36.951,2503.9,2502.7,1.15253]
[1750907733061,3.2078,2502.8,2502.7,1.15253]
[1750907733360,3.2078,2502.8,2502.7,1.49810413]
[1750907733555,3.2078,2502.8,2502.7,3.44932413]
[1750907733861,3.2078,2502.8,2502.7,2.65063413]
[1750907734456,3.2078,2502.8,2502.7,3.44932413]
[1750907734959,3.2078,2502.8,2502.7,2.65063413]
[1750907735360,4.00637,2503.1,2502.7,3.96263413]
[1750907735550,4.00637,2503.1,2503.0,1.15253]
[1750907735954,3.2078,2503.1,2503.0,1.15253]
[1750907736851,4.00637,2503.1,2503.0,1.15253]
[1750907737364,3.2078,2503.1,2503.0,1.15253]
[1750907738159,3.2078,2503.1,2503.0,1.95113]
[1750907738358,3.2078,2503.1,2503.0,3.44923413]
[1750907738957,3.2078,2503.4,2503.2,0.79852]
[1750907739160,3.2078,2503.4,2503.3,1.15253]
[1750907739360,0.79851,2503.3,2503.1,2.52853]
[1750907739556,0.79851,2503.3,2502.8,0.79865]
[1750907739867,0.79853,2503.2,2503.1,1.15253]
[1750907740054,0.79852,2503.3,2503.1,1.15253]
[1750907740258,0.79854,2503.2,2502.9,1.376]
[1750907740457,3.2078,2503.1,2502.9,2.87410413]
[1750907740853,3.2078,2503.1,2503.0,1.15253]
[1750907741264,4.00637,2503.1,2503.0,1.15253]
[1750907741469,3.2078,2503.1,2503.0,1.15253]
[1750907741869,8.2078,2503.1,2502.6,1.376]
[1750907742057,3.2078,2502.7,2502.6,2.87410413]
[1750907742261,3.2078,2503.0,2502.8,1.15253]
[1750907742461,3.2078,2503.0,2502.9,1.15253]
[1750907742657,3.2078,2503.0,2502.9,1.4048]